[Event "Early-Titled-Tuesday-Blitz-April-02-2024"]
[Site "Chess.com"]
[Date "2024.04.02"]
[Round "5"]
[White "Let_it_be_1"]
[Black "jk13"]
[Result "0-1"]
[WhiteElo "2552"]
[BlackElo "2709"]
[TimeControl "180+1"]
[EndTime "8:54:44 PDT"]
[Termination "jk13 won by resignation"]

1. e4 {[%clk 0:02:57.8]} 1... e5 {[%clk 0:03:00.1]} 2. Nf3 {[%clk 0:02:56.5]}
2... Nc6 {[%clk 0:03:00.9]} 3. Bb5 {[%clk 0:02:56.3]} 3... a6 {[%clk 0:03:01.5]}
4. Ba4 {[%clk 0:02:56.6]} 4... Nf6 {[%clk 0:03:02.2]} 5. d4 {[%clk 0:02:55.9]}
5... exd4 {[%clk 0:03:01.8]} 6. O-O {[%clk 0:02:55.2]} 6... b5 {[%clk 0:03:02]}
7. Bb3 {[%clk 0:02:54.7]} 7... d6 {[%clk 0:03:02.6]} 8. Ng5 {[%clk 0:02:47.5]}
8... Ne5 {[%clk 0:02:59.3]} 9. f4 {[%clk 0:02:47.7]} 9... Nc4 {[%clk 0:02:53.9]}
10. e5 {[%clk 0:02:48]} 10... Nd5 {[%clk 0:02:19.1]} 11. Qxd4 {[%clk 0:02:37.2]}
11... c6 {[%clk 0:01:49.4]} 12. Nd2 {[%clk 0:01:49]} 12... Qb6 {[%clk
0:01:03.1]} 13. Qxb6 {[%clk 0:01:43.9]} 13... Ndxb6 {[%clk 0:01:01.6]} 14. exd6
{[%clk 0:01:42]} 14... Bxd6 {[%clk 0:01:00.7]} 15. Re1+ {[%clk 0:01:31.3]} 15...
Be7 {[%clk 0:00:53.1]} 16. a4 {[%clk 0:01:24.1]} 16... h6 {[%clk 0:00:43]} 17.
axb5 {[%clk 0:01:15.3]} 17... cxb5 {[%clk 0:00:35.4]} 18. Nge4 {[%clk 0:01:07]}
18... O-O {[%clk 0:00:34.9]} 19. Nxc4 {[%clk 0:00:59.9]} 19... bxc4 {[%clk
0:00:34.8]} 20. Ba2 {[%clk 0:00:58.3]} 20... Bb7 {[%clk 0:00:29.9]} 21. Be3
{[%clk 0:00:58.1]} 21... Nd5 {[%clk 0:00:22.6]} 22. Bc5 {[%clk 0:00:58.3]} 22...
Rfe8 {[%clk 0:00:20.9]} 23. Bxe7 {[%clk 0:00:46.8]} 23... Rxe7 {[%clk 0:00:21]}
24. Bxc4 {[%clk 0:00:45.2]} 24... Nxf4 {[%clk 0:00:20.4]} 25. Nf6+ {[%clk
0:00:45]} 25... Kf8 {[%clk 0:00:21.1]} 26. Rxe7 {[%clk 0:00:26.7]} 26... Kxe7
{[%clk 0:00:22]} 27. Nh5 {[%clk 0:00:26.1]} 27... Nxh5 {[%clk 0:00:21.7]} 0-1

[Event "Early-Titled-Tuesday-Blitz-April-02-2024"]
[Site "Chess.com"]
[Date "2024.04.02"]
[Round "5"]
[White "elcala"]
[Black "FredddieCroderg"]
[Result "0-1"]
[WhiteElo "1832"]
[BlackElo "2350"]
[TimeControl "180+1"]
[EndTime "8:54:46 PDT"]
[Termination "FredddieCroderg won on time"]

1. d4 {[%clk 0:03:00.9]} 1... d5 {[%clk 0:02:57]} 2. Nf3 {[%clk 0:02:59.9]} 2...
Nf6 {[%clk 0:02:56.8]} 3. Bf4 {[%clk 0:03:00.1]} 3... e6 {[%clk 0:02:56.2]} 4.
e3 {[%clk 0:03:00.6]} 4... Bd6 {[%clk 0:02:55.1]} 5. Bg3 {[%clk 0:02:58.4]} 5...
O-O {[%clk 0:02:54]} 6. c3 {[%clk 0:02:57.5]} 6... c5 {[%clk 0:02:53.6]} 7. Nbd2
{[%clk 0:02:57.3]} 7... Nc6 {[%clk 0:02:53.5]} 8. Ne5 {[%clk 0:02:54.6]} 8...
Bxe5 {[%clk 0:02:42.8]} 9. dxe5 {[%clk 0:02:52.2]} 9... Nd7 {[%clk 0:02:42.5]}
10. f4 {[%clk 0:02:52]} 10... d4 {[%clk 0:02:41.9]} 11. exd4 {[%clk 0:02:25.4]}
11... cxd4 {[%clk 0:02:41.5]} 12. cxd4 {[%clk 0:02:24]} 12... Nxd4 {[%clk
0:02:39.4]} 13. Be2 {[%clk 0:02:16.8]} 13... Nxe2 {[%clk 0:02:35.6]} 14. Qxe2
{[%clk 0:02:14.9]} 14... Nc5 {[%clk 0:02:36]} 15. O-O {[%clk 0:02:08.3]} 15...
Qd3 {[%clk 0:02:33.2]} 16. Qxd3 {[%clk 0:01:47.1]} 16... Nxd3 {[%clk 0:02:31]}
17. b3 {[%clk 0:01:43.6]} 17... b6 {[%clk 0:02:26.5]} 18. Rf3 {[%clk 0:01:42.5]}
18... Rd8 {[%clk 0:02:23]} 19. Nc4 {[%clk 0:01:36.4]} 19... Bb7 {[%clk
0:02:21.5]} 20. Re3 {[%clk 0:01:31]} 20... Nb4 {[%clk 0:01:59]} 21. Re2 {[%clk
0:01:06.9]} 21... Ba6 {[%clk 0:01:54.7]} 22. Re4 {[%clk 0:00:52.2]} 22... Nc2
{[%clk 0:01:32.3]} 23. Rc1 {[%clk 0:00:36.4]} 23... Nd4 {[%clk 0:01:31.6]} 24.
Nd6 {[%clk 0:00:34]} 24... Ne2+ {[%clk 0:01:29.1]} 25. Rxe2 {[%clk 0:00:28]}
25... Bxe2 {[%clk 0:01:30]} 26. Rc7 {[%clk 0:00:22.6]} 26... Bh5 {[%clk
0:01:25.7]} 27. Bh4 {[%clk 0:00:20.3]} 27... Rf8 {[%clk 0:01:20.3]} 28. Be7
{[%clk 0:00:17.9]} 28... Rfb8 {[%clk 0:01:17.3]} 29. h3 {[%clk 0:00:13.3]} 29...
a5 {[%clk 0:01:15.2]} 30. g4 {[%clk 0:00:13.2]} 30... Bg6 {[%clk 0:01:13.7]} 31.
h4 {[%clk 0:00:11.5]} 31... a4 {[%clk 0:01:10.2]} 32. h5 {[%clk 0:00:11.4]}
32... Bb1 {[%clk 0:01:07.8]} 33. Nb5 {[%clk 0:00:04]} 33... Bxa2 {[%clk
0:01:04.4]} 34. bxa4 {[%clk 0:00:01.3]} 34... Rxa4 {[%clk 0:01:02.1]} 0-1

[Event "Early-Titled-Tuesday-Blitz-April-02-2024"]
[Site "Chess.com"]
[Date "2024.04.02"]
[Round "5"]
[White "Statham_01"]
[Black "Happy1712Drummer"]
[Result "1-0"]
[WhiteElo "2626"]
[BlackElo "2495"]
[TimeControl "180+1"]
[EndTime "8:54:49 PDT"]
[Termination "Statham_01 won on time"]

1. e4 {[%clk 0:02:58]} 1... c5 {[%clk 0:02:56.8]} 2. a3 {[%clk 0:02:56.7]} 2...
e6 {[%clk 0:02:22.9]} 3. b4 {[%clk 0:02:53.4]} 3... d5 {[%clk 0:02:20.8]} 4. e5
{[%clk 0:02:44.4]} 4... Nc6 {[%clk 0:02:17.5]} 5. Nf3 {[%clk 0:02:41.8]} 5...
Qc7 {[%clk 0:01:58.7]} 6. d4 {[%clk 0:02:22]} 6... cxd4 {[%clk 0:01:52.7]} 7.
Bf4 {[%clk 0:02:21.9]} 7... f6 {[%clk 0:01:42.5]} 8. Bb5 {[%clk 0:02:21.7]} 8...
Ne7 {[%clk 0:01:30.5]} 9. Bg3 {[%clk 0:01:51.7]} 9... Qb6 {[%clk 0:01:12.3]} 10.
Qe2 {[%clk 0:01:45.8]} 10... Bd7 {[%clk 0:00:57.4]} 11. exf6 {[%clk 0:01:20.4]}
11... gxf6 {[%clk 0:00:58.3]} 12. O-O {[%clk 0:01:20.7]} 12... O-O-O {[%clk
0:00:56.3]} 13. c3 {[%clk 0:01:17.8]} 13... e5 {[%clk 0:00:54]} 14. Rc1 {[%clk
0:00:49.9]} 14... Bg4 {[%clk 0:00:35]} 15. a4 {[%clk 0:00:37.2]} 15... a6 {[%clk
0:00:20.3]} 16. cxd4 {[%clk 0:00:24.4]} 16... e4 {[%clk 0:00:18.8]} 17. Qe3
{[%clk 0:00:25]} 17... exf3 {[%clk 0:00:11.7]} 18. Qf4 {[%clk 0:00:24.6]} 18...
h5 {[%clk 0:00:03]} 19. a5 {[%clk 0:00:24.5]} 1-0

[Event "Early-Titled-Tuesday-Blitz-April-02-2024"]
[Site "Chess.com"]
[Date "2024.04.02"]
[Round "5"]
[White "AlexeiShirov"]
[Black "Kazmin_Semyon"]
[Result "1-0"]
[WhiteElo "2812"]
[BlackElo "2605"]
[TimeControl "180+1"]
[EndTime "8:54:52 PDT"]
[Termination "AlexeiShirov won by resignation"]

1. e4 {[%clk 0:03:00.9]} 1... e6 {[%clk 0:02:57.5]} 2. d4 {[%clk 0:03:00.1]}
2... d5 {[%clk 0:02:57.7]} 3. e5 {[%clk 0:03:00.7]} 3... c5 {[%clk 0:02:57.3]}
4. c3 {[%clk 0:03:01.3]} 4... Nc6 {[%clk 0:02:58]} 5. Nf3 {[%clk 0:03:01.5]}
5... Bd7 {[%clk 0:02:58.7]} 6. Be2 {[%clk 0:03:00.5]} 6... f6 {[%clk 0:02:59.2]}
7. O-O {[%clk 0:02:57.2]} 7... fxe5 {[%clk 0:02:57.9]} 8. Nxe5 {[%clk
0:02:56.7]} 8... Nxe5 {[%clk 0:02:58.2]} 9. dxe5 {[%clk 0:02:56.3]} 9... Qc7
{[%clk 0:02:58.9]} 10. c4 {[%clk 0:02:55.2]} 10... d4 {[%clk 0:02:28.5]} 11. f4
{[%clk 0:02:38.2]} 11... O-O-O {[%clk 0:02:26.5]} 12. Nd2 {[%clk 0:02:37.5]}
12... Bc6 {[%clk 0:02:17]} 13. Bd3 {[%clk 0:02:35.3]} 13... Ne7 {[%clk
0:02:09.1]} 14. Ne4 {[%clk 0:02:34.2]} 14... Nf5 {[%clk 0:02:09.8]} 15. Qe2
{[%clk 0:02:23.1]} 15... Bxe4 {[%clk 0:01:59.9]} 16. Qxe4 {[%clk 0:02:20.5]}
16... h5 {[%clk 0:02:00.5]} 17. Bd2 {[%clk 0:02:18.9]} 17... h4 {[%clk
0:01:31.1]} 18. a3 {[%clk 0:02:17.5]} 18... g6 {[%clk 0:01:08.9]} 19. b4 {[%clk
0:02:16.1]} 19... Qh7 {[%clk 0:00:31]} 20. Rab1 {[%clk 0:02:09.9]} 20... Ng3
{[%clk 0:00:20.9]} 21. Qf3 {[%clk 0:01:46]} 21... Nxf1 {[%clk 0:00:21.3]} 22.
Kxf1 {[%clk 0:01:44.8]} 22... Qc7 {[%clk 0:00:21.2]} 23. Bxg6 {[%clk 0:01:38.7]}
23... Rg8 {[%clk 0:00:21.2]} 24. Be4 {[%clk 0:01:36.4]} 24... b6 {[%clk
0:00:19.9]} 25. Qh3 {[%clk 0:01:30]} 25... Qf7 {[%clk 0:00:14.4]} 26. Ke2 {[%clk
0:01:25.8]} 26... Bh6 {[%clk 0:00:14.1]} 27. Rf1 {[%clk 0:01:23.6]} 27... d3+
{[%clk 0:00:13.4]} 28. Kd1 {[%clk 0:01:22.1]} 28... cxb4 {[%clk 0:00:12.3]} 29.
Bxb4 {[%clk 0:01:19.6]} 29... Qd7 {[%clk 0:00:12.9]} 30. Kd2 {[%clk 0:01:15]}
30... Qd4 {[%clk 0:00:13.2]} 31. Qxe6+ {[%clk 0:01:13.2]} 31... Kb8 {[%clk
0:00:02.9]} 32. Bd6+ {[%clk 0:01:11.6]} 32... Rxd6 {[%clk 0:00:03.2]} 33. Qxd6+
{[%clk 0:01:10.2]} 33... Qxd6 {[%clk 0:00:03.4]} 34. exd6 {[%clk 0:01:09.8]}
34... Rd8 {[%clk 0:00:03.8]} 35. c5 {[%clk 0:01:09.7]} 35... bxc5 {[%clk
0:00:02]} 36. Rb1+ {[%clk 0:01:08.2]} 36... Kc8 {[%clk 0:00:02.6]} 37. Bf5+
{[%clk 0:01:07.8]} 37... Rd7 {[%clk 0:00:03.3]} 38. g3 {[%clk 0:01:04.8]} 1-0

[Event "Early-Titled-Tuesday-Blitz-April-02-2024"]
[Site "Chess.com"]
[Date "2024.04.02"]
[Round "5"]
[White "Vesper2018"]
[Black "PavelChernomordik"]
[Result "1/2-1/2"]
[WhiteElo "2586"]
[BlackElo "2427"]
[TimeControl "180+1"]
[EndTime "8:54:53 PDT"]
[Termination "Game drawn by repetition"]

1. e4 {[%clk 0:03:00.9]} 1... g6 {[%clk 0:02:59.6]} 2. d4 {[%clk 0:03:00.6]}
2... Bg7 {[%clk 0:02:59.6]} 3. Nc3 {[%clk 0:03:00.7]} 3... d6 {[%clk 0:02:59.5]}
4. f4 {[%clk 0:03:00.5]} 4... a6 {[%clk 0:02:59.4]} 5. Nf3 {[%clk 0:03:00.5]}
5... b5 {[%clk 0:02:59.2]} 6. Bd3 {[%clk 0:02:59.1]} 6... Nd7 {[%clk 0:02:59]}
7. e5 {[%clk 0:02:55.7]} 7... c5 {[%clk 0:02:58.9]} 8. Be4 {[%clk 0:02:50.7]}
8... Rb8 {[%clk 0:02:58.3]} 9. Be3 {[%clk 0:02:45.2]} 9... b4 {[%clk 0:02:55.9]}
10. Ne2 {[%clk 0:02:41.5]} 10... Qc7 {[%clk 0:02:53.9]} 11. c3 {[%clk
0:02:24.6]} 11... bxc3 {[%clk 0:02:52.1]} 12. bxc3 {[%clk 0:02:24.5]} 12... Nh6
{[%clk 0:02:49.4]} 13. h3 {[%clk 0:02:14.2]} 13... O-O {[%clk 0:02:46.9]} 14.
O-O {[%clk 0:02:13.9]} 14... Bb7 {[%clk 0:02:41.1]} 15. Qc2 {[%clk 0:01:56.8]}
15... cxd4 {[%clk 0:02:36.1]} 16. cxd4 {[%clk 0:01:56.4]} 16... Qxc2 {[%clk
0:02:32.2]} 17. Bxc2 {[%clk 0:01:56.1]} 17... Nf5 {[%clk 0:02:31.5]} 18. Bf2
{[%clk 0:01:52.3]} 18... Rfc8 {[%clk 0:02:29.5]} 19. Bb3 {[%clk 0:01:50.8]}
19... Bxf3 {[%clk 0:02:22.3]} 20. gxf3 {[%clk 0:01:49.2]} 20... e6 {[%clk
0:02:21.3]} 21. Rfc1 {[%clk 0:01:45.3]} 21... d5 {[%clk 0:02:17.4]} 22. Rxc8+
{[%clk 0:01:42.1]} 22... Rxc8 {[%clk 0:02:17]} 23. Rc1 {[%clk 0:01:42.7]} 23...
Rxc1+ {[%clk 0:02:11.9]} 24. Nxc1 {[%clk 0:01:42.8]} 24... Bh6 {[%clk 0:02:06]}
25. Nd3 {[%clk 0:01:42.7]} 25... Nb6 {[%clk 0:02:02.1]} 26. Kf1 {[%clk
0:01:32.7]} 26... Nc4 {[%clk 0:01:56.2]} 27. Ke2 {[%clk 0:01:29.5]} 27... a5
{[%clk 0:01:45.9]} 28. Bxc4 {[%clk 0:01:27.5]} 28... dxc4 {[%clk 0:01:45.6]} 29.
Nb2 {[%clk 0:01:28.2]} 29... c3 {[%clk 0:01:34.5]} 30. Nd3 {[%clk 0:01:28.3]}
30... Ne7 {[%clk 0:01:34.3]} 31. Be3 {[%clk 0:01:14.1]} 31... Nd5 {[%clk
0:01:33.2]} 32. Bc1 {[%clk 0:01:08.2]} 32... Kf8 {[%clk 0:01:24.6]} 33. Kd1
{[%clk 0:01:00.4]} 33... Ke7 {[%clk 0:01:24]} 34. Kc2 {[%clk 0:01:00.8]} 34...
Kd7 {[%clk 0:01:22.9]} 35. Kb3 {[%clk 0:00:59.7]} 35... Kc6 {[%clk 0:01:22.1]}
36. Kc4 {[%clk 0:00:59.9]} 36... Bf8 {[%clk 0:01:08.9]} 37. Ne1 {[%clk
0:00:35.4]} 37... Bh6 {[%clk 0:00:56.7]} 38. Nd3 {[%clk 0:00:35.4]} 38... Bf8
{[%clk 0:00:56.1]} 39. Ne1 {[%clk 0:00:23.4]} 39... Bh6 {[%clk 0:00:54.8]} 40.
Nd3 {[%clk 0:00:23.4]} 1/2-1/2

[Event "Early-Titled-Tuesday-Blitz-April-02-2024"]
[Site "Chess.com"]
[Date "2024.04.02"]
[Round "5"]
[White "Malikova777"]
[Black "zajka-molotok"]
[Result "0-1"]
[WhiteElo "2315"]
[BlackElo "2546"]
[TimeControl "180+1"]
[EndTime "8:54:53 PDT"]
[Termination "zajka-molotok won by checkmate"]

1. d4 {[%clk 0:01:32.2]} 1... b6 {[%clk 0:03:00.9]} 2. e4 {[%clk 0:01:23.8]}
2... Bb7 {[%clk 0:03:01.8]} 3. Bd3 {[%clk 0:01:22.8]} 3... e6 {[%clk 0:03:02.7]}
4. Nf3 {[%clk 0:01:21.5]} 4... Nf6 {[%clk 0:03:02]} 5. Nbd2 {[%clk 0:01:19.9]}
5... d5 {[%clk 0:03:02]} 6. e5 {[%clk 0:01:19.3]} 6... Nfd7 {[%clk 0:03:02.4]}
7. c3 {[%clk 0:01:18]} 7... c5 {[%clk 0:03:02.8]} 8. O-O {[%clk 0:01:17.8]} 8...
Nc6 {[%clk 0:03:03.1]} 9. a3 {[%clk 0:01:12.8]} 9... c4 {[%clk 0:02:59.8]} 10.
Bc2 {[%clk 0:01:12.1]} 10... b5 {[%clk 0:03:00.2]} 11. Ne1 {[%clk 0:01:10.5]}
11... Be7 {[%clk 0:03:00.1]} 12. f4 {[%clk 0:01:10.5]} 12... g6 {[%clk
0:03:00.7]} 13. Ndf3 {[%clk 0:01:08.8]} 13... a5 {[%clk 0:02:59.7]} 14. g3
{[%clk 0:00:59.8]} 14... b4 {[%clk 0:02:59]} 15. Ba4 {[%clk 0:00:59.5]} 15...
Nb6 {[%clk 0:02:57.9]} 16. Bb5 {[%clk 0:00:57.4]} 16... Kd7 {[%clk 0:02:54.6]}
17. Ng5 {[%clk 0:00:55.9]} 17... Qg8 {[%clk 0:02:46.7]} 18. Be3 {[%clk
0:00:44.3]} 18... h6 {[%clk 0:02:46.2]} 19. Ngf3 {[%clk 0:00:44.2]} 19... b3
{[%clk 0:02:46.5]} 20. Kf2 {[%clk 0:00:41]} 20... Kc7 {[%clk 0:02:46.4]} 21.
Bxc6 {[%clk 0:00:39.5]} 21... Bxc6 {[%clk 0:02:47.3]} 22. Ke2 {[%clk 0:00:39]}
22... Na4 {[%clk 0:02:47.4]} 23. Bc1 {[%clk 0:00:37.6]} 23... Rf8 {[%clk
0:02:47]} 24. Kd2 {[%clk 0:00:33.6]} 24... f5 {[%clk 0:02:47.2]} 25. exf6 {[%clk
0:00:30.3]} 25... Bxf6 {[%clk 0:02:46]} 26. Qe2 {[%clk 0:00:30.5]} 26... g5
{[%clk 0:02:45.1]} 27. Kd1 {[%clk 0:00:30.5]} 27... Qg6 {[%clk 0:02:41.2]} 28.
Ne5 {[%clk 0:00:28]} 28... Bxe5 {[%clk 0:02:40.1]} 29. Qxe5+ {[%clk 0:00:28.9]}
29... Kb7 {[%clk 0:02:40.4]} 30. Rf2 {[%clk 0:00:25.4]} 30... h5 {[%clk
0:02:38.7]} 31. Ng2 {[%clk 0:00:18.2]} 31... h4 {[%clk 0:02:34.1]} 32. g4 {[%clk
0:00:16]} 32... h3 {[%clk 0:02:33.8]} 33. Ne1 {[%clk 0:00:15.6]} 33... Rh4
{[%clk 0:02:30.1]} 34. f5 {[%clk 0:00:13]} 34... exf5 {[%clk 0:02:30.4]} 35.
gxf5 {[%clk 0:00:13]} 35... Qh5+ {[%clk 0:02:26.3]} 36. Nf3 {[%clk 0:00:11.7]}
36... Re4 {[%clk 0:02:24.2]} 37. Qg7+ {[%clk 0:00:11.4]} 37... Rf7 {[%clk
0:02:24.4]} 38. Qxg5 {[%clk 0:00:11.7]} 38... Rxf5 {[%clk 0:02:19.5]} 39. Qxh5
{[%clk 0:00:10.4]} 39... Rxh5 {[%clk 0:02:20.4]} 40. Ne5 {[%clk 0:00:11]} 40...
Rg5 {[%clk 0:02:13]} 41. Bxg5 {[%clk 0:00:09.4]} 41... Be8 {[%clk 0:02:09]} 42.
Kd2 {[%clk 0:00:07.9]} 42... Nxb2 {[%clk 0:02:06.8]} 43. Rf8 {[%clk 0:00:05.7]}
43... Bh5 {[%clk 0:02:05.8]} 44. Re1 {[%clk 0:00:04.6]} 44... Na4 {[%clk
0:02:02]} 45. Rxe4 {[%clk 0:00:04.1]} 45... dxe4 {[%clk 0:02:02.9]} 46. Rf1
{[%clk 0:00:02]} 46... b2 {[%clk 0:02:00.8]} 47. d5 {[%clk 0:00:02.4]} 47... Nc5
{[%clk 0:01:58.4]} 48. Nxc4 {[%clk 0:00:02.8]} 48... Nd3 {[%clk 0:01:57.7]} 49.
Kc2 {[%clk 0:00:02.9]} 49... Be2 {[%clk 0:01:56.6]} 50. Rf7+ {[%clk 0:00:03.5]}
50... Kc8 {[%clk 0:01:56]} 51. Nb6+ {[%clk 0:00:03.7]} 51... Kb8 {[%clk
0:01:56.5]} 52. d6 {[%clk 0:00:04]} 52... Bd1+ {[%clk 0:01:55.6]} 53. Kd2 {[%clk
0:00:04.4]} 53... b1=Q {[%clk 0:01:51.2]} 54. d7 {[%clk 0:00:04.1]} 54... Qc1#
{[%clk 0:01:50.2]} 0-1

[Event "Early-Titled-Tuesday-Blitz-April-02-2024"]
[Site "Chess.com"]
[Date "2024.04.02"]
[Round "5"]
[White "viktorskliarov"]
[Black "robertoalejandro10"]
[Result "1-0"]
[WhiteElo "2623"]
[BlackElo "2492"]
[TimeControl "180+1"]
[EndTime "8:54:54 PDT"]
[Termination "viktorskliarov won by resignation"]

1. e4 {[%clk 0:03:00.9]} 1... c5 {[%clk 0:02:51.6]} 2. Nf3 {[%clk 0:03:00]} 2...
g6 {[%clk 0:02:45.3]} 3. d4 {[%clk 0:02:58.6]} 3... cxd4 {[%clk 0:02:45.2]} 4.
Qxd4 {[%clk 0:02:59.5]} 4... Nf6 {[%clk 0:02:43]} 5. Nc3 {[%clk 0:02:58.5]} 5...
Nc6 {[%clk 0:02:41.4]} 6. Qa4 {[%clk 0:02:58.5]} 6... d6 {[%clk 0:02:39.9]} 7.
e5 {[%clk 0:02:56.7]} 7... dxe5 {[%clk 0:02:40.8]} 8. Nxe5 {[%clk 0:02:56.4]}
8... Bg7 {[%clk 0:02:20.3]} 9. Nxc6 {[%clk 0:02:55.8]} 9... bxc6 {[%clk
0:02:20.9]} 10. Qxc6+ {[%clk 0:02:54.5]} 10... Bd7 {[%clk 0:02:20.6]} 11. Qa6
{[%clk 0:02:38.3]} 11... O-O {[%clk 0:02:10.5]} 12. Be2 {[%clk 0:02:35.9]} 12...
Qc7 {[%clk 0:01:56.6]} 13. O-O {[%clk 0:02:31.1]} 13... Rfb8 {[%clk 0:01:54]}
14. Bf3 {[%clk 0:02:24.1]} 14... Rb6 {[%clk 0:01:50.7]} 15. Qxb6 {[%clk
0:02:16.8]} 15... Qxb6 {[%clk 0:01:39.9]} 16. Bxa8 {[%clk 0:02:17.7]} 16... h5
{[%clk 0:01:37.2]} 17. h3 {[%clk 0:02:09.8]} 17... Bf5 {[%clk 0:01:37]} 18. Nd5
{[%clk 0:01:50.7]} 18... Nxd5 {[%clk 0:01:32.7]} 19. Bxd5 {[%clk 0:01:51.6]}
19... Bxc2 {[%clk 0:01:28]} 20. Bb3 {[%clk 0:01:33.7]} 20... Be4 {[%clk
0:00:58]} 21. Be3 {[%clk 0:01:27.9]} 21... Qb7 {[%clk 0:00:57.2]} 22. f3 {[%clk
0:01:27.4]} 22... Bd3 {[%clk 0:00:45.3]} 23. Rf2 {[%clk 0:01:19.7]} 23... Be5
{[%clk 0:00:39.6]} 24. Rd1 {[%clk 0:01:17.5]} 24... Bf5 {[%clk 0:00:35.6]} 25.
Bd5 {[%clk 0:01:00.3]} 25... Qa6 {[%clk 0:00:32.2]} 26. Rfd2 {[%clk 0:00:56.2]}
26... Qa4 {[%clk 0:00:12.5]} 27. Bg5 {[%clk 0:00:37.5]} 27... e6 {[%clk
0:00:08.3]} 28. Bb3 {[%clk 0:00:37.2]} 28... Kg7 {[%clk 0:00:06.5]} 29. Bxa4
{[%clk 0:00:36.8]} 1-0

[Event "Early-Titled-Tuesday-Blitz-April-02-2024"]
[Site "Chess.com"]
[Date "2024.04.02"]
[Round "5"]
[White "Laico"]
[Black "ChessQueen"]
[Result "0-1"]
[WhiteElo "2418"]
[BlackElo "2729"]
[TimeControl "180+1"]
[EndTime "8:54:58 PDT"]
[Termination "ChessQueen won on time"]

1. e4 {[%clk 0:02:57.4]} 1... c6 {[%clk 0:02:59.9]} 2. d4 {[%clk 0:02:54.7]}
2... d5 {[%clk 0:03:00.8]} 3. f3 {[%clk 0:02:54.7]} 3... e6 {[%clk 0:03:00.3]}
4. Nc3 {[%clk 0:02:54.7]} 4... Bb4 {[%clk 0:03:00]} 5. Bf4 {[%clk 0:02:54]} 5...
Ne7 {[%clk 0:02:55.1]} 6. Ne2 {[%clk 0:02:49.1]} 6... c5 {[%clk 0:02:50.3]} 7.
a3 {[%clk 0:02:38]} 7... Bxc3+ {[%clk 0:02:44.7]} 8. Nxc3 {[%clk 0:02:38.9]}
8... cxd4 {[%clk 0:02:41.8]} 9. Nb5 {[%clk 0:02:38.7]} 9... O-O {[%clk 0:02:36]}
10. Nc7 {[%clk 0:02:12]} 10... Ng6 {[%clk 0:02:35.8]} 11. Bg3 {[%clk 0:02:04.8]}
11... dxe4 {[%clk 0:02:33.4]} 12. Nxa8 {[%clk 0:02:01]} 12... e5 {[%clk
0:02:33.7]} 13. fxe4 {[%clk 0:01:46]} 13... Be6 {[%clk 0:02:27.6]} 14. h4 {[%clk
0:01:36.2]} 14... Nc6 {[%clk 0:02:25.6]} 15. h5 {[%clk 0:01:35.3]} 15... Nf4
{[%clk 0:02:25.6]} 16. Bxf4 {[%clk 0:01:22.1]} 16... exf4 {[%clk 0:02:25.4]} 17.
h6 {[%clk 0:01:21.9]} 17... g6 {[%clk 0:02:23.5]} 18. Qd2 {[%clk 0:01:14.9]}
18... Qb8 {[%clk 0:02:08.4]} 19. Bb5 {[%clk 0:01:04.2]} 19... Qe5 {[%clk
0:02:06]} 20. Bxc6 {[%clk 0:01:02]} 20... bxc6 {[%clk 0:02:06.9]} 21. Nc7 {[%clk
0:00:52.7]} 21... Qxc7 {[%clk 0:02:03.2]} 22. Qxd4 {[%clk 0:00:52.9]} 22... f6
{[%clk 0:02:03.4]} 23. O-O-O {[%clk 0:00:48.4]} 23... g5 {[%clk 0:01:55.7]} 24.
Qd6 {[%clk 0:00:45.5]} 24... Qxd6 {[%clk 0:01:42.9]} 25. Rxd6 {[%clk 0:00:46.4]}
25... Kf7 {[%clk 0:01:43.2]} 26. Rxc6 {[%clk 0:00:46]} 26... Rc8 {[%clk
0:01:38.5]} 27. Rxc8 {[%clk 0:00:43]} 27... Bxc8 {[%clk 0:01:39.4]} 28. Kd2
{[%clk 0:00:36.4]} 28... Bb7 {[%clk 0:01:39.2]} 29. Kd3 {[%clk 0:00:21.4]} 29...
f5 {[%clk 0:01:39.4]} 30. exf5 {[%clk 0:00:20.1]} 30... Kf6 {[%clk 0:01:40]} 31.
Rh2 {[%clk 0:00:17.9]} 31... Kxf5 {[%clk 0:01:38.3]} 32. c4 {[%clk 0:00:16.8]}
32... g4 {[%clk 0:01:38.4]} 33. c5 {[%clk 0:00:09.1]} 33... g3 {[%clk
0:01:35.4]} 34. Rh5+ {[%clk 0:00:09.3]} 34... Kg4 {[%clk 0:01:29.7]} 35. Re5
{[%clk 0:00:04.5]} 35... Bxg2 {[%clk 0:01:29.6]} 36. Re7 {[%clk 0:00:02.3]}
36... f3 {[%clk 0:00:57.8]} 37. Rxh7 {[%clk 0:00:02.8]} 37... Kh5 {[%clk
0:00:58]} 38. Rg7 {[%clk 0:00:02.3]} 38... Kxh6 {[%clk 0:00:56]} 39. Rxg3 {[%clk
0:00:02]} 39... f2 {[%clk 0:00:56.6]} 0-1